Cogmind - Beta 12 X1 @@@ ROGUE MODE // 2022.07.05 @ 20:46:56 Player: Plexion Result: Destroyed by Y-64 Sentinel with KE Penetrator Performance ------------- Evolutions (5) 2500 Regions Visited (16) 3200 Robots Destroyed (218) 1090 Value Destroyed (11506) 11506 Prototype IDs (13) 260 Alien Tech Used (0) 0 Bonus (8582) 8582 TOTAL SCORE: 27138 Bonus ------- Pacifist 200 High Alert Combat Kills 3735 Follower Combat Kills 1336 Entered Garrisons 800 Used RIF Installer 3000 Friendly Fire -489 Cogmind --------- Core Integrity 0/1000 Matter 209/300 Energy 98/100 System Corruption 4% Temperature Cool (9) Movement Core (50) Location -5/Upper Caves Parts ------- > --- POWER (1) -------- (None) > --- PROPULSION (4) --- (None) > --- UTILITY (9) ------ 0b10 Decoder Chip [Scout] Relay Coupler [NC] (34) Relay Coupler [Behemoth] (12) > --- WEAPON (3) ------- (None) > --- INVENTORY (5) ---- Antimatter Reactor High-capacity Matter Pod (200) Advanced Sensor Array Peak State ------------ > --- POWER ------------ Improved Deuterium Engine > --- PROPULSION ------- Improved Heavy Treads Improved Heavy Treads > --- UTILITY ---------- Advanced Heat Sink Large Storage Unit Advanced Targeting Computer Advanced Target Analyzer Experimental Core Analyzer Graphene Brace EM Disruption Field Relay Coupler [Grunt] Relay Coupler [Sentry] > --- WEAPON ----------- Flak Gun Helical Railgun Helical Railgun > --- INVENTORY -------- Antimatter Reactor High-capacity Matter Pod Relay Coupler [NC] Relay Coupler [Heavy] Relay Coupler [Behemoth] [Rating: 101] Favorites ----------- Power Cooled Ion Engine Engine Cooled Ion Engine Power Core Micro Nuclear Core Reactor Improved Quantum Reactor Propulsion Light Treads Treads Light Treads Wheel Armored Huge Wheel Utility Large Storage Unit Device Graphene Brace Storage Large Storage Unit Processor Advanced Targeting Computer Hackware Relay Coupler [Sentry] Protection Hardened Medium Armor Plating Weapon Improved Assault Rifle Ballistic Gun Improved Assault Rifle Ballistic Cannon Heavy Mass Driver Launcher Rocket Launcher Special Weapon Remote Datajack Slashing Weapon Katana Build | -11 -10 -9 -9 -8 -8 -8 -8 -7 -7 -6 -6 -5 -5 -5 -5 -5 ------- Run | Scr Mat Mat Min Mat Gar Mat Gar Fac Gar Fac Gar Fac Was Fac Upp Upp Slots Evolved 10 | . . 2 . 2 . . . 2 . 2 . 2 . . . . Power . | . . . . . . . . . . . . . . . . . Propulsion 2 | . . . . 1 . . . 1 . . . . . . . . Utility 7 | . . 1 . 1 . . . 1 . 2 . 2 . . . . Weapon 1 | . . 1 . . . . . . . . . . . . . . Parts Attached 175 | 6 11 10 1 13 15 15 27 10 17 9 17 17 1 . 4 2 Power 9 | 1 1 1 . . 1 . . 1 1 1 1 1 . . . . Engine 5 | 1 1 1 . . 1 . . . . . . 1 . . . . Core 2 | . . . . . . . . 1 . 1 . . . . . . Reactor 2 | . . . . . . . . . 1 . 1 . . . . . Propulsion 32 | 2 3 4 . 3 2 2 5 2 4 . . 5 . . . . Treads 30 | 2 3 4 . 3 2 2 5 1 4 . . 4 . . . . Leg . | . . . . . . . . . . . . . . . . . Wheel 2 | . . . . . . . . 1 . . . 1 . . . . Hover . | . . . . . . . . . . . . . . . . . Flight . | . . . . . . . . . . . . . . . . . Utility 56 | 1 2 4 1 5 3 2 8 5 3 3 8 5 . . 4 2 Device 9 | . . . . . 2 . . . . 2 . 4 . . 1 . Storage 2 | 1 1 . . . . . . . . . . . . . . . Processor 7 | . 1 1 . 1 . . 1 . . . 1 1 . . . 1 Hackware 21 | . . . . . . 1 6 4 2 . 5 . . . 3 . Protection 17 | . . 3 1 4 1 1 1 1 1 1 2 . . . . 1 Artifact . | . . . . . . . . . . . . . . . . . Weapon 78 | 2 5 1 . 5 9 11 14 2 9 5 8 6 1 . . . Energy Gun . | . . . . . . . . . . . . . . . . . Energy Cannon . | . . . . . . . . . . . . . . . . . Ballistic Gun 36 | 2 5 1 . 4 3 8 4 . 3 . 2 4 . . . . Ballistic Cannon 4 | . . . . . . . 1 . 1 . 1 1 . . . . Launcher 19 | . . . . 1 4 1 4 1 2 2 2 1 1 . . . Special Weapon 17 | . . . . . . 2 5 1 3 3 3 . . . . . Impact Weapon . | . . . . . . . . . . . . . . . . . Slashing Weapon 2 | . . . . . 2 . . . . . . . . . . . Piercing Weapon . | . . . . . . . . . . . . . . . . . Special Melee Weapon . | . . . . . . . . . . . . . . . . . Unidentified Prototypes 5 | . 1 1 . . . 1 . . . . 1 . 1 . . . Parts Lost 35 | . . . . 2 6 1 1 1 2 1 4 14 1 . . 2 Power 4 | . . . . . 1 . . 1 . 1 . 1 . . . . Propulsion 8 | . . . . . 2 . . . 1 . . 4 1 . . . Utility 17 | . . . . 2 3 . 1 . 1 . 3 5 . . . 2 Weapon 6 | . . . . . . 1 . . . . 1 4 . . . . Highest Loss Streak 8 | . . . . 2 2 1 1 1 1 1 2 8 1 . . 2 To Critical Strikes 1 | . . . . . 1 . . . . . . . . . . . Average Slot Usage (%) 82 | . 96 98 100 99 97 99 89 77 75 75 76 70 9 . 18 25 Engine 5 | . 13 11 11 9 9 9 9 2 . . . 1 . . . . Core 1 | . . . . . . . . 4 2 3 2 . . . . . Reactor 1 | . . . . . . . . . 4 2 3 2 . . . . Treads 17 | . 26 22 22 27 25 27 23 11 14 13 13 9 4 . . . Device 2 | . . . . . 6 9 . . . 8 5 10 . . 2 3 Storage 7 | . 14 11 11 9 9 9 9 7 7 6 6 4 . . . . Processor 8 | . 12 11 11 9 9 9 9 7 7 6 10 11 . . . 3 Hackware 7 | . . . . . . 4 9 13 11 6 11 9 . . 15 16 Protection 8 | . . 9 11 17 11 4 8 8 7 13 9 5 . . . . Ballistic Gun 11 | . 27 33 33 26 22 25 8 . 1 . . 5 . . . . Ballistic Cannon 3 | . . . . . . . 6 7 7 6 5 2 . . . . Special Weapon 2 | . . . . . . . 5 7 3 5 4 . . . . . Naked Turns 179 | . . . . . . . . . . . . 68 8 92 11 . Heaviest Build 76 | 10 29 44 44 52 43 43 59 66 72 76 67 71 . . 1 3 Greatest Support 150 | 40 40 40 40 63 63 60 95 115 150 150 150 150 3 3 3 3 Greatest Overweight (x) 2 | . . 1 1 . 1 . . 2 2 . . . . . . . Average Overweight (x) . | . . . 1 . . . . . . . . . . . . . Largest Inventory Capacity 15 | 8 15 15 15 15 15 15 15 15 15 15 15 15 5 5 5 5 Average Capacity 14 | 7 8 15 15 15 15 15 15 15 15 15 15 13 5 5 5 5 Most Carried 15 | 2 8 15 15 15 15 15 15 15 15 14 15 14 5 5 5 3 Average Carried 13 | 1 4 13 14 14 13 14 14 13 14 13 14 9 5 5 2 2 Final Capacity 15 | 8 15 15 15 15 15 15 15 15 15 15 15 5 5 5 5 5 Final Carried 15 | 2 7 15 15 13 15 15 15 12 15 14 15 5 5 5 2 3 Class Distribution -------------------- 45% | Bothacker-Mutant 15% | Mutant 14% | Gunner 9% | Bothacker-Gunner 4% | Botlord-Mutant 4% | Scavenger-Tank Dominant Class ---------------- Mutant | -10/Materials Gunner | -9/Materials Gunner | -9/Mines Tank | -8/Materials Scavenger-Tank | -8/Garrison Bothacker-Gunner | -8/Materials Bothacker-Mutant | -8/Garrison Bothacker-Mutant | -7/Factory Bothacker-Mutant | -7/Garrison Bothacker-Mutant | -6/Factory Botlord-Mutant | -6/Garrison Mutant | -5/Factory Mutant | -5/Waste Mutant | -5/Factory Mutant | -5/Upper Caves Mutant | -5/Upper Caves Resources | -11 -10 -9 -9 -8 -8 -8 -8 -7 -7 -6 -6 -5 -5 -5 -5 -5 ----------- Run | Scr Mat Mat Min Mat Gar Mat Gar Fac Gar Fac Gar Fac Was Fac Upp Upp Matter Collected 7985 | 203 . 960 63 313 564 447 1199 1028 988 188 1264 670 . . 35 63 Remotely . | . . . . . . . . . . . . . . . . . Salvage Created 8250 | . . 1507 84 726 507 666 1326 419 732 252 813 1218 . . . . Parts 413 | . . 88 6 32 37 27 37 17 34 16 36 83 . . . . Haulers Intercepted 8 | . . 4 . . . 3 . 1 . . . . . . . . Recyclers Shooed 1 | . . . . . . 1 . . . . . . . . . . Parts Field Recycled . | . . . . . . . . . . . . . . . . . Retrieved Matter . | . . . . . . . . . . . . . . . . . Parts Self-Destructed 3 | . . . . . . . . . . . . . . . 2 1 Prevented . | . . . . . . . . . . . . . . . . . Kills | -11 -10 -9 -9 -8 -8 -8 -8 -7 -7 -6 -6 -5 -5 -5 -5 -5 ------- Run | Scr Mat Mat Min Mat Gar Mat Gar Fac Gar Fac Gar Fac Was Fac Upp Upp Combat Hostiles Destroyed 181 | . . 18 2 16 21 10 21 13 16 7 36 21 . . . . Melee 2 | . . . . . 2 . . . . . . . . . . . Guns 67 | . . 18 2 13 7 9 4 . . . 1 13 . . . . Cannons 43 | . . . . . . . 10 8 4 3 12 6 . . . . AOE 69 | . . . . 3 12 1 7 5 12 4 23 2 . . . . Classes Destroyed 20 | . . 7 1 . 1 2 1 . 1 . 4 3 . . . . Worker 13 | . . 6 . . . . . 2 . . . 5 . . . . Builder 6 | . . . . . . . . . . . . 6 . . . . Hauler 8 | . . 4 . . . 3 . 1 . . . . . . . . Recycler 5 | . . 4 . . . 1 . . . . . . . . . . Watcher 2 | . . 2 . . . . . . . . . . . . . . Swarmer 38 | . . 3 . 2 10 . . . 10 3 8 2 . . . . Cutter 2 | . . . . . . . 2 . . . . . . . . . Saboteur 8 | . . . . . . . . . . . 7 1 . . . . Grunt 80 | . . 7 1 11 9 5 12 8 5 2 13 7 . . . . Brawler 6 | . . . . . . 2 2 . . . . 2 . . . . Duelist 6 | . . . 1 . . 1 . 1 . . 1 2 . . . . Protector 1 | . . . . . . . . . . . . 1 . . . . Sentry 15 | . . 8 . 3 . 1 1 1 . 1 . . . . . . Demolisher 1 | . . . . . . . . . . . . 1 . . . . Specialist 6 | . . . . . . . . . . . 5 1 . . . . Hunter 12 | . . . . . . 1 2 2 1 1 1 4 . . . . Programmer 6 | . . . . . 2 . 3 1 . . . . . . . . Behemoth 1 | . . . . . . . . . 1 . . . . . . . Striker 1 | . . . . . . . . . . . 1 . . . . . Executioner 1 | . . . . . . . . . . . 1 . . . . . Best Kill Streak 16 | . . 4 2 6 4 3 4 8 4 3 14 16 . . . . Combat Bots Only 14 | . . 4 2 6 4 2 4 6 4 3 14 12 . . . . Max Kills in Single Turn 4 | . . 2 1 2 2 2 2 2 3 3 4 3 . . . . Gunslinging 1 | . . . . . . . 1 . . . . 1 . . . . Exploded 4 | . . . . 2 2 1 2 2 3 3 4 2 . . . . Melee 1 | . . . . . 1 . . . . . . . . . . . Uniques/NPCs Destroyed . | . . . . . . . . . . . . . . . . . Combat | -11 -10 -9 -9 -8 -8 -8 -8 -7 -7 -6 -6 -5 -5 -5 -5 -5 -------- Run | Scr Mat Mat Min Mat Gar Mat Gar Fac Gar Fac Gar Fac Was Fac Upp Upp Damage Taken 11125 | . . 613 59 886 826 324 796 559 934 439 1756 3571 61 . 55 246 Core 1719 | . . 64 . 102 53 47 48 67 58 25 253 811 31 . 55 105 Absorbed by Shields 250 | . . . . . . . . . . . 250 . . . . . Reduced by Siege Mode 258 | . . . . . . . . . 33 . 69 156 . . . . Regen/Repaired (Parts) 257 | . . . . . . . . . . . . 257 . . . . Core Remaining (%) 81 | 100 100 . 84 . . . 54 . 82 . 67 . . . . . Volleys Fired 630 | . 1 55 5 38 34 33 155 59 84 10 106 50 . . . . Largest 3 | . 2 3 3 3 3 3 3 1 2 2 2 3 . . . . Hottest 110 | . 46 69 69 69 69 75 75 75 105 108 110 108 . . . . Shots Fired 1016 | . 2 165 15 108 72 91 177 59 93 11 113 110 . . . . Gun 698 | . 2 165 15 105 62 87 114 . 49 . 7 92 . . . . Cannon 189 | . . . . . . . 45 37 27 6 60 14 . . . . Launcher 64 | . . . . 3 10 2 10 2 8 3 22 4 . . . . Special 65 | . . . . . . 2 8 20 9 2 24 . . . . . Kinetic 887 | . 2 165 15 105 62 87 159 37 76 6 67 106 . . . . Thermal . | . . . . . . . . . . . . . . . . . Explosive 64 | . . . . 3 10 2 10 2 8 3 22 4 . . . . Electromagnetic . | . . . . . . . . . . . . . . . . . Robot Hit Streak 26 | . . 24 10 11 11 12 26 7 15 12 18 18 . . . . Robot Miss Streak 8 | . 2 1 1 3 2 3 4 2 2 . 3 8 . . . . Penetration Max 2 | . . . . . . . . . 1 . . 2 . . . . Secondary Targets 12 | . . 3 1 3 1 1 1 . . . . 2 . . . . Max Gunslinging Chain 1 | . . 1 1 1 1 1 1 . . . . 1 . . . . Shots Hit Robots 710 | . . 115 12 77 47 62 132 39 64 10 71 81 . . . . Core Hits 455 | . . 47 4 37 33 30 60 19 42 13 79 91 . . . . Critical Kills 10 | . . . . 1 . . 2 . 1 . 1 5 . . . . Critical Parts Destroyed 9 | . . . . . . . 3 . . . . 6 . . . . Critical Strikes 47 | . . . . 1 . . 10 7 3 . 11 15 . . . . Destroy 20 | . . . . 1 . . 5 . 1 . 2 11 . . . . Blast 27 | . . . . . . . 5 7 2 . 9 4 . . . . Melee Attacks 5 | . . . . . 5 . . . . . . . . . . . Impact . | . . . . . . . . . . . . . . . . . Slashing 5 | . . . . . 5 . . . . . . . . . . . Piercing . | . . . . . . . . . . . . . . . . . Sneak Attacks . | . . . . . . . . . . . . . . . . . Combat Hostiles . | . . . . . . . . . . . . . . . . . Follow-up Attacks . | . . . . . . . . . . . . . . . . . Damage Inflicted 25100 | . . 1955 183 1430 1774 1162 4036 2360 2615 625 5404 3556 . . . . Guns 10254 | . . 1955 183 1114 666 924 2048 . 1124 . 123 2117 . . . . Cannons 7356 | . . . . . . . 1342 1515 777 273 2527 922 . . . . Explosions 7414 | . . . . 316 1039 238 646 845 707 352 2754 517 . . . . Melee 69 | . . . . . 69 . . . . . . . . . . . Ramming 7 | . . . . . . . . . 7 . . . . . . . Kinetic 17610 | . . 1955 183 1114 666 924 3390 1515 1901 273 2650 3039 . . . . Thermal . | . . . . . . . . . . . . . . . . . Explosive 7414 | . . . . 316 1039 238 646 845 707 352 2754 517 . . . . Electromagnetic . | . . . . . . . . . . . . . . . . . Impact . | . . . . . . . . . . . . . . . . . Slashing 69 | . . . . . 69 . . . . . . . . . . . Piercing . | . . . . . . . . . . . . . . . . . Highest Corruption 4 | . . . . . . . 1 . . . 2 4 4 4 4 4 Average Corruption 2 | . . . . . . . 1 . . . 1 2 4 4 4 4 Corruption Purged . | . . . . . . . . . . . . . . . . . Corruption Blocked . | . . . . . . . . . . . . . . . . . Effects 27 | . . . . . . . 2 . . . 8 8 4 1 1 3 Message Errors 9 | . . . . . . . 1 . . . 3 3 1 . . 1 Matter Fused 4 | . . . . . . . . . . . 1 1 1 . . 1 Heat Flow Errors 4 | . . . . . . . . . . . 3 . . . . 1 Energy Discharges 1 | . . . . . . . . . . . . . . 1 . . Parts Rejected 1 | . . . . . . . . . . . . . 1 . . . Data Loss (minor) 3 | . . . . . . . 1 . . . . 1 . . 1 . Data Loss (major) 2 | . . . . . . . . . . . 1 1 . . . . Misfires 1 | . . . . . . . . . . . . 1 . . . . Alerts 1 | . . . . . . . . . . . . . 1 . . . Weapon Failures 1 | . . . . . . . . . . . . 1 . . . . Overload Shots . | . . . . . . . . . . . . . . . . . Overflow Damage 938 | . . . . . 46 . 354 159 45 24 183 127 . . . . Projectiles 802 | . . . . . . . 328 118 28 24 182 122 . . . . Explosions 136 | . . . . . 46 . 26 41 17 . 1 5 . . . . Melee . | . . . . . . . . . . . . . . . . . Knockbacks 39 | . . . . . . . 8 5 3 . 18 5 . . . . Impact . | . . . . . . . . . . . . . . . . . Kinetic 33 | . . . . . . . 7 5 2 . 14 5 . . . . Secondary 6 | . . . . . . . 1 . 1 . 4 . . . . . Self-Inflicted Damage 488 | . . . . . 161 . 75 . 140 41 35 36 . . . . Shots 16 | . . . . . 5 . 2 . 4 1 2 2 . . . . Rammed 1 | . . . . . . . . . 1 . . . . . . . Targets Rammed 1 | . . . . . . . . . 1 . . . . . . . Kicked . | . . . . . . . . . . . . . . . . . Crushed . | . . . . . . . . . . . . . . . . . Highest Temperature 247 | . . 30 27 124 77 84 168 154 147 68 247 107 . . . 129 Average Temperature 33 | . . 6 12 43 28 34 41 40 39 32 39 31 . . . 69 Received Heat Transfer 2560 | . . 162 30 414 351 126 180 216 93 36 283 624 . . 18 27 Siege Activations 5 | . . . . . . . . . 1 . 2 2 . . . . Total Turns 110 | . . . . . . . . . 25 . 35 50 . . . . Longest Duration 35 | . . . . . . . . . 25 . 24 35 . . . . Robots Corrupted . | . . . . . . . . . . . . . . . . . Combat Hostiles . | . . . . . . . . . . . . . . . . . Parts Fried . | . . . . . . . . . . . . . . . . . Impact Corruptions 1 | . . . . . . . 1 . . . . . . . . . Robots Melted . | . . . . . . . . . . . . . . . . . Combat Hostiles . | . . . . . . . . . . . . . . . . . Parts Melted . | . . . . . . . . . . . . . . . . . Heat Transferred . | . . . . . . . . . . . . . . . . . Parts Sabotaged . | . . . . . . . . . . . . . . . . . Parts Stolen . | . . . . . . . . . . . . . . . . . Parts Stripped . | . . . . . . . . . . . . . . . . . Power Chain Reactions . | . . . . . . . . . . . . . . . . . Missiles Intercepted . | . . . . . . . . . . . . . . . . . Alert | -11 -10 -9 -9 -8 -8 -8 -8 -7 -7 -6 -6 -5 -5 -5 -5 -5 ------- Run | Scr Mat Mat Min Mat Gar Mat Gar Fac Gar Fac Gar Fac Was Fac Upp Upp Peak Influence 2033 | . 21 351 153 551 945 662 1700 1026 1574 1150 2033 1866 668 460 . . Initial 1066 | . . 8 103 59 360 460 380 892 622 826 708 1066 653 460 . . Average 870 | . 12 136 140 302 694 522 1063 761 1183 924 1489 1438 661 460 . . Maximum Alert Level 5 | . . 1 . 2 3 2 5 3 4 4 5 5 2 2 . . Low Security (%) 16 | 100 100 81 100 27 . . . . . . . . . . . . Level 1 5 | . . 18 . 28 8 . 7 . . . . . . . . . Level 2 17 | . . . . 43 44 100 14 31 1 1 . . 100 100 . . Level 3 27 | . . . . . 47 . 28 68 39 94 17 9 . . . . Level 4 22 | . . . . . . . 39 . 58 3 30 53 . . . . Level 5 10 | . . . . . . . 9 . . . 51 37 . . . . High Security . | . . . . . . . . . . . . . . . . . Max Security . | . . . . . . . . . . . . . . . . . Squads Dispatched 33 | . 1 1 . 4 . 3 . 7 . 6 . 9 . 2 . . Investigation 3 | . . . . . . . . 1 . 1 . . . 1 . . Extermination 3 | . . . . . . . . 2 . 1 . . . . . . Reinforcement 13 | . 1 1 . 1 . . . 3 . 2 . 4 . 1 . . Assault 6 | . . . . . . . . 1 . . . 5 . . . . Garrison 8 | . . . . 3 . 3 . . . 2 . . . . . . Intercept . | . . . . . . . . . . . . . . . . . Searches Triggered . | . . . . . . . . . . . . . . . . . Construction Impeded 3 | . . . . . . . . . . 1 . 2 . . . . Haulers Reinforced 2 | . . . . . . . . 1 . . . 1 . . . . Active Scanning Responses . | . . . . . . . . . . . . . . . . . Cargo Convoy Interrupts . | . . . . . . . . . . . . . . . . . Stealth | -11 -10 -9 -9 -8 -8 -8 -8 -7 -7 -6 -6 -5 -5 -5 -5 -5 --------- Run | Scr Mat Mat Min Mat Gar Mat Gar Fac Gar Fac Gar Fac Was Fac Upp Upp Distress Signals 10 | . . 4 . 2 . 3 . . . . . 1 . . . . Communications Jammed 6 | . . . . . . . . 6 . . . . . . . . Distress Signals 6 | . . . . . . . . 6 . . . . . . . . Times Spotted 319 | . 2 31 2 20 22 15 32 33 22 17 40 61 7 1 7 7 Peak Tracking Total 13 | . 2 5 2 10 6 3 5 7 4 4 8 13 6 . 4 7 Tactical Retreats 15 | . . 3 . 3 1 . 1 1 . . . 3 1 . 2 . Traps | -11 -10 -9 -9 -8 -8 -8 -8 -7 -7 -6 -6 -5 -5 -5 -5 -5 ------- Run | Scr Mat Mat Min Mat Gar Mat Gar Fac Gar Fac Gar Fac Was Fac Upp Upp Traps Triggered 14 | . 2 . . . 2 . . . 2 1 4 3 . . . . Indirectly . | . . . . . . . . . . . . . . . . . Trap Hack Attempts . | . . . . . . . . . . . . . . . . . Triggered . | . . . . . . . . . . . . . . . . . Disarmed . | . . . . . . . . . . . . . . . . . Reprogrammed . | . . . . . . . . . . . . . . . . . Reused . | . . . . . . . . . . . . . . . . . Traps Extracted . | . . . . . . . . . . . . . . . . . Installed . | . . . . . . . . . . . . . . . . . Triggered . | . . . . . . . . . . . . . . . . . Machines | -11 -10 -9 -9 -8 -8 -8 -8 -7 -7 -6 -6 -5 -5 -5 -5 -5 ---------- Run | Scr Mat Mat Min Mat Gar Mat Gar Fac Gar Fac Gar Fac Was Fac Upp Upp Machines Disabled 61 | . . 1 . 1 2 . 7 15 9 2 11 13 . . . . Max in Single Turn 9 | . . 1 . 1 1 . 1 9 1 . 1 1 . . . . Garrison Relay 16 | . . . . . 2 . 6 . 4 . 4 . . . . . Machines Sabotaged . | . . . . . . . . . . . . . . . . . Garrisons Compromised . | . . . . . . . . . . . . . . . . . Overloaded Fab Kills . | . . . . . . . . . . . . . . . . . Hacking | -11 -10 -9 -9 -8 -8 -8 -8 -7 -7 -6 -6 -5 -5 -5 -5 -5 --------- Run | Scr Mat Mat Min Mat Gar Mat Gar Fac Gar Fac Gar Fac Was Fac Upp Upp Machines Accessed 33 | . 2 4 . 1 1 2 3 6 4 4 2 3 . 1 . . Terminals 26 | . 2 4 . . 1 1 3 4 4 3 2 1 . 1 . . Fabricators 1 | . . . . . . . . 1 . . . . . . . . Repair Stations 2 | . . . . . . . . . . . . 2 . . . . Recycling Units . | . . . . . . . . . . . . . . . . . Scanalyzers . | . . . . . . . . . . . . . . . . . Garrison Access 4 | . . . . 1 . 1 . 1 . 1 . . . . . . Total Hacks 68 | . 3 5 . 4 2 5 9 12 6 8 3 9 . 2 . . Successful 32 | . 1 4 . 1 . 5 3 5 3 5 2 3 . . . . Failed 36 | . 2 1 . 3 2 . 6 7 3 3 1 6 . 2 . . Catastrophic 7 | . . . . . . . . 2 . 1 1 2 . 1 . . Database Lockouts . | . . . . . . . . . . . . . . . . . Manual 25 | . 4 6 . . . 2 . 6 . 7 . . . . . . Terminals 53 | . 3 5 . . 2 4 9 10 6 7 3 2 . 2 . . Fabricators 1 | . . . . . . . . 1 . . . . . . . . Repair Stations 7 | . . . . . . . . . . . . 7 . . . . Recycling Units . | . . . . . . . . . . . . . . . . . Scanalyzers . | . . . . . . . . . . . . . . . . . Garrison Access 7 | . . . . 4 . 1 . 1 . 1 . . . . . . Terminal Hacks 17 | . 1 3 . . . 2 3 2 3 1 2 . . . . . Robot Analysis 3 | . 1 2 . . . . . . . . . . . . . . Open Door 2 | . . . . . . . 1 . 1 . . . . . . . Emergency Access Points 3 | . . . . . . . 1 . 1 . 1 . . . . . Fabricator Index 1 | . . . . . . . . 1 . . . . . . . . Unreport Threat 1 | . . . . . . . . . . 1 . . . . . . Hauler Manifests 2 | . . . . . . 1 . 1 . . . . . . . . Zone Layout 2 | . . 1 . . . 1 . . . . . . . . . . Patrol Navigation 2 | . . . . . . . 1 . . . 1 . . . . . Security Stations 1 | . . . . . . . . . 1 . . . . . . . Fabricator Hacks . | . . . . . . . . . . . . . . . . . Repair Station Hacks 3 | . . . . . . . . . . . . 3 . . . . Scan Component 2 | . . . . . . . . . . . . 2 . . . . Repair 1 | . . . . . . . . . . . . 1 . . . . Recycling Unit Hacks . | . . . . . . . . . . . . . . . . . Scanalyzer . | . . . . . . . . . . . . . . . . . Garrison Access Hacks 4 | . . . . 1 . 1 . 1 . 1 . . . . . . Unlock Access 4 | . . . . 1 . 1 . 1 . 1 . . . . . . Unauthorized Hacks 8 | . . 1 . . . 2 . 2 . 3 . . . . . . Terminals 8 | . . 1 . . . 2 . 2 . 3 . . . . . . Track 2 | . . . . . . 1 . . . 1 . . . . . . Botnet 4 | . . . . . . . . 2 . 2 . . . . . . Disrupt 2 | . . 1 . . . 1 . . . . . . . . . . Fabricators . | . . . . . . . . . . . . . . . . . Repair Stations . | . . . . . . . . . . . . . . . . . Recycling Units . | . . . . . . . . . . . . . . . . . Scanalyzers . | . . . . . . . . . . . . . . . . . Garrison Access . | . . . . . . . . . . . . . . . . . Data Cores Recovered 1 | . . . . . . . . . . 1 . . . . . . Used 1 | . . . . . . . . . . 1 . . . . . . Hacking Detections 28 | . 2 3 . 1 1 1 3 6 2 3 2 3 . 1 . . Full Trace Events 4 | . . . . . . . . 1 . 1 1 . . 1 . . Feedback Events . | . . . . . . . . . . . . . . . . . Feedback Blocked . | . . . . . . . . . . . . . . . . . Robot Schematics Acquired . | . . . . . . . . . . . . . . . . . Robots Built . | . . . . . . . . . . . . . . . . . Authchips . | . . . . . . . . . . . . . . . . . Time . | . . . . . . . . . . . . . . . . . Total Robot Build Rating . | . . . . . . . . . . . . . . . . . Part Schematics Acquired . | . . . . . . . . . . . . . . . . . Parts Built . | . . . . . . . . . . . . . . . . . Authchips . | . . . . . . . . . . . . . . . . . Time . | . . . . . . . . . . . . . . . . . Total Part Build Rating . | . . . . . . . . . . . . . . . . . Parts Repaired 1 | . . . . . . . . . . . . 1 . . . . Time 28 | . . . . . . . . . . . . 28 . . . . Parts Recycled . | . . . . . . . . . . . . . . . . . Recycled Matter . | . . . . . . . . . . . . . . . . . Retrieved Matter . | . . . . . . . . . . . . . . . . . Retrieved Components . | . . . . . . . . . . . . . . . . . Parts Scanalyzed . | . . . . . . . . . . . . . . . . . Part Schematics Acquired . | . . . . . . . . . . . . . . . . . Parts Damaged . | . . . . . . . . . . . . . . . . . Bothacking | -11 -10 -9 -9 -8 -8 -8 -8 -7 -7 -6 -6 -5 -5 -5 -5 -5 ------------ Run | Scr Mat Mat Min Mat Gar Mat Gar Fac Gar Fac Gar Fac Was Fac Upp Upp Used RIF Installer 6 | . . . . . 2 . 1 . 1 . 2 . . . . . Signal Jammer 1 | . . . . . 1 . . . . . . . . . . . Zone Cloak 1 | . . . . . . . . . 1 . . . . . . . Structural Interface 1 | . . . . . . . . . . . 1 . . . . . Autooverride 1 | . . . . . . . 1 . . . . . . . . . Autoassimilate 1 | . . . . . . . . . . . 1 . . . . . Robots Hacked 30 | . . . . . . 2 7 8 4 2 5 2 . . . . Non-combat 2 | . . . . . . . . 2 . . . . . . . . Combat 28 | . . . . . . 2 7 6 4 2 5 2 . . . . Autooverrided 1 | . . . . . . . . . . . . 1 . . . . Autoassimilated 1 | . . . . . . . . . . . . 1 . . . . Robot Hacks Applied 31 | . . . . . . 2 7 11 4 2 5 . . . . . parse_system 2 | . . . . . . . . 1 . . 1 . . . . . drop_inventory 1 | . . . . . . . . 1 . . . . . . . . purge_threat 3 | . . . . . . . . 3 . . . . . . . . amplify_resonance 1 | . . . . . . . 1 . . . . . . . . . reboot_system 3 | . . . . . . 1 . . . 1 1 . . . . . go_dormant 1 | . . . . . . . . 1 . . . . . . . . overwrite_iff 4 | . . . . . . . 1 2 1 . . . . . . . formatsys_high 16 | . . . . . . 1 5 3 3 1 3 . . . . . Relay Couplers Released 68 | . . . . . 9 . 24 . 19 . 16 . . . . . Machine Destruction 68 | . . . . . 9 . 24 . 19 . 16 . . . . . Attached 21 | . . . . . . 1 6 4 2 . 5 . . . 3 . Fabnet Peak Effective % . | . . . . . . . . . . . . . . . . . Robots Rewired 9 | . . . . . . . . 2 1 . 6 . . . . . Allies Hacked . | . . . . . . . . . . . . . . . . . Hacks Repelled . | . . . . . . . . . . . . . . . . . Allies | -11 -10 -9 -9 -8 -8 -8 -8 -7 -7 -6 -6 -5 -5 -5 -5 -5 -------- Run | Scr Mat Mat Min Mat Gar Mat Gar Fac Gar Fac Gar Fac Was Fac Upp Upp Total Allies 37 | . . . . . . 1 8 7 9 1 9 2 . . . . Largest Group 6 | . . . . . . 1 3 3 6 5 4 2 . . . . Highest-Rated Group 270 | . . . . . . 15 74 93 270 189 238 64 . . . . Highest-Rated Ally 119 | . . . . . . 15 39 32 81 51 119 32 . . . . Total Orders 2 | . . . . . . . . . . . 2 . . . . . STAY 1 | . . . . . . . . . . . 1 . . . . . FOLLOW 1 | . . . . . . . . . . . 1 . . . . . Ally Attacks 221 | . . . . . . 5 31 20 17 51 66 31 . . . . Total Damage 5872 | . . . . . . 68 639 840 606 1213 1570 936 . . . . Kills 46 | . . . . . . 1 7 6 5 11 6 10 . . . . Allies Corrupted 1 | . . . . . . . . . . . . 1 . . . . Allies Melted 5 | . . . . . . . 1 1 . . 2 . . . . 1 Intel | -11 -10 -9 -9 -8 -8 -8 -8 -7 -7 -6 -6 -5 -5 -5 -5 -5 ------- Run | Scr Mat Mat Min Mat Gar Mat Gar Fac Gar Fac Gar Fac Was Fac Upp Upp Robot Analysis Total 3 | . 1 2 . . . . . . . . . . . . . . Derelict Logs Recovered 4 | . . . . . . . . . . . . . . . 2 2 Drone Launches . | . . . . . . . . . . . . . . . . . Drone Recoveries . | . . . . . . . . . . . . . . . . . Exploration | -11 -10 -9 -9 -8 -8 -8 -8 -7 -7 -6 -6 -5 -5 -5 -5 -5 ------------- Run | Scr Mat Mat Min Mat Gar Mat Gar Fac Gar Fac Gar Fac Was Fac Upp Upp Turns Passed 12010 | 80 262 1600 149 326 1043 560 1987 1004 1652 595 1513 783 135 92 156 73 Spaces Moved 6693 | 45 147 624 55 112 502 234 981 608 904 348 764 479 266 183 302 139 Core 1062 | 2 . . . . . . . . . . . 170 266 183 302 139 Treads 5037 | 43 147 624 55 112 502 234 981 150 768 348 764 309 . . . . Legs . | . . . . . . . . . . . . . . . . . Wheels 594 | . . . . . . . . 458 136 . . . . . . . Hover . | . . . . . . . . . . . . . . . . . Flight . | . . . . . . . . . . . . . . . . . Fastest Speed 50 | 50 160 160 240 160 163 163 160 115 115 160 160 50 50 50 50 50 Average Speed 146 | 155 160 215 240 160 175 163 160 128 154 160 160 120 50 50 50 50 Slowest Speed 245 | 160 160 240 240 163 245 163 163 160 160 160 160 160 50 50 50 50 Overloaded Moves . | . . . . . . . . . . . . . . . . . Propulsion Burnouts . | . . . . . . . . . . . . . . . . . Robots Hopped . | . . . . . . . . . . . . . . . . . Cave-ins Triggered . | . . . . . . . . . . . . . . . . . Exploration Rate (%) 41 | 5 28 58 15 9 49 21 91 20 89 15 96 20 88 8 57 29 Regions Visited 16 Branch Regions 3 Pre-discovered Areas 1 | . . . . . . . . . . . . . . . 1 . Known Exits Taken 5 | . . . 1 1 . 1 . 1 . 1 . . . . . . Unknown Exits Taken 5 | 1 1 1 . . . . . . . . . . . 1 1 . Scrap Searched 5 | . . . 1 . . . . . . . . . . . 1 3 Spaces Dug 63 | . . . . . 6 . 14 3 32 . 7 1 . . . . Terrain Destroyed 438 | . . . . 23 49 12 71 57 64 17 115 30 . . . . Melee . | . . . . . . . . . . . . . . . . . Projectile 91 | . . . . . . . 18 20 7 3 23 20 . . . . AOE 347 | . . . . 23 49 12 53 37 57 14 92 10 . . . . Terrain Rammed . | . . . . . . . . . . . . . . . . . Walls Destroyed . | . . . . . . . . . . . . . . . . . Machines Disabled . | . . . . . . . . . . . . . . . . . Actions | -11 -10 -9 -9 -8 -8 -8 -8 -7 -7 -6 -6 -5 -5 -5 -5 -5 --------- Run | Scr Mat Mat Min Mat Gar Mat Gar Fac Gar Fac Gar Fac Was Fac Upp Upp Total 7965 | 52 169 761 62 176 592 346 1218 766 1053 369 924 581 267 182 305 142 Wait 298 | . . 41 . 5 26 51 29 71 21 1 20 33 . . . . Move 6682 | 44 146 623 54 112 501 234 980 608 903 348 763 479 265 182 301 139 Hop . | . . . . . . . . . . . . . . . . . Pick Up 76 | 2 5 16 1 3 7 3 11 7 11 1 8 1 . . . . Fast Attach 50 | 6 9 3 . 2 1 4 2 2 3 2 5 7 1 . 1 2 Attach 41 | . . 2 1 6 5 1 2 2 4 2 3 10 . . 3 . Detach 15 | . 2 3 . 1 . 1 1 . 2 . 3 1 . . . 1 Swap 84 | . 2 5 . 5 9 10 23 6 10 5 9 . . . . . Drop 66 | . 4 13 1 4 . 8 14 7 8 . 6 . 1 . . . Fire 630 | . 1 55 5 38 34 33 155 59 84 10 106 50 . . . . Melee 5 | . . . . . 5 . . . . . . . . . . . Ram . | . . . . . . . . . . . . . . . . . Kick . | . . . . . . . . . . . . . . . . . Crush 1 | . . . . . . . . . 1 . . . . . . . Escape Stasis 6 | . . . . . 4 . . . 2 . . . . . . . Rewire 11 | . . . . . . 1 1 4 4 . 1 . . . . . Trap . | . . . . . . . . . . . . . . . . . Miscellaneous . | . . . . . . . . . . . . . . . . . Route ------- -11/Scrapyard -10/Materials -9/Materials (discovered 3 exits: *Mat x2 / [*Min]) -9/Mines -8/Materials -8/Garrison (discovered 2 exits: *Mat x2) -8/Materials (discovered 2 exits: *Fac / Gar) -8/Garrison (discovered 3 exits: *Fac x3) -7/Factory -7/Garrison (discovered 4 exits: *Fac x3 / [*Fac]) -6/Factory (discovered 2 exits: *Fac / Gar) -6/Garrison (discovered 3 exits: *Fac x3) -5/Factory -5/Waste -5/Factory -5/Upper Caves -5/Upper Caves (discovered 1 exit: [*Fac]) History --------- Turn | Location | Event 9 | -11/Scrapyard | Discovered new exit (range 16) 81 | -11/Scrapyard | Entered Materials 284 | -10/Materials | Discovered new exit (range 15) 324 | -10/Materials | Build established: Mutant 343 | -10/Materials | Entered another Materials area 343 | -9/Materials | Evolved 2 slots: Utility x1, Weapon x1 626 | -9/Materials | Build established: Gunner 979 | -9/Materials | Discovered new exit (range 10) 1319 | -9/Materials | Identified exit to Materials 1653 | -9/Materials | Discovered exit to Materials (range 9) 1933 | -9/Materials | Discovered new exit (range 5) 1943 | -9/Materials | Entered Mines 2001 | -9/Mines | Discovered exit to Materials (range 5) 2092 | -9/Mines | Entered Materials 2092 | -8/Materials | Evolved 2 slots: Propulsion x1, Utility x1 2140 | -8/Materials | Garrison activated, responded to threat 2418 | -8/Materials | Identified exit to Garrison 2418 | -8/Materials | Entered Garrison 2493 | -8/Garrison | Triggered checkpoint 2504 | -8/Garrison | Triggered checkpoint 2616 | -8/Garrison | Triggered checkpoint 2677 | -8/Garrison | Garrison Relay disabled 2724 | -8/Garrison | Installed Relay Interface Framework 2791 | -8/Garrison | Discovered new exit (range 11) 2814 | -8/Garrison | Build established: Scavenger-Tank 2904 | -8/Garrison | Triggered checkpoint 2967 | -8/Garrison | Triggered checkpoint 3083 | -8/Garrison | Discovered new exit (range 10) 3182 | -8/Garrison | Triggered checkpoint 3236 | -8/Garrison | Garrison Relay disabled 3307 | -8/Garrison | Expanded RIF knowledge: Signal Jamming 3461 | -8/Garrison | Entered Materials 3585 | -8/Materials | Discovered new exit (range 16) 3722 | -8/Materials | Garrison activated, responded to threat 4021 | -8/Materials | Identified exit to Garrison 4021 | -8/Materials | Entered Garrison 4094 | -8/Garrison | Build established: Bothacker-Gunner 4175 | -8/Garrison | Garrison Relay disabled 4198 | -8/Garrison | Triggered checkpoint 4217 | -8/Garrison | Garrison Relay disabled 4276 | -8/Garrison | Triggered checkpoint 4356 | -8/Garrison | Triggered checkpoint 4364 | -8/Garrison | Triggered checkpoint 4450 | -8/Garrison | Discovered new exit (range 10) 4524 | -8/Garrison | Triggered checkpoint 4639 | -8/Garrison | Garrison Relay disabled 4768 | -8/Garrison | Triggered checkpoint 4785 | -8/Garrison | Garrison Relay disabled 4822 | -8/Garrison | Triggered checkpoint 4926 | -8/Garrison | Build established: Bothacker-Mutant 4945 | -8/Garrison | Discovered new exit (range 12) 5008 | -8/Garrison | Garrison Relay disabled 5022 | -8/Garrison | Triggered checkpoint 5081 | -8/Garrison | Rescued a captive Derelict 5082 | -8/Garrison | Rescued a captive Derelict 5460 | -8/Garrison | Expanded RIF knowledge: Autooverride 5482 | -8/Garrison | Triggered checkpoint 5508 | -8/Garrison | Discovered new exit (range 13) 5572 | -8/Garrison | Triggered checkpoint 5588 | -8/Garrison | Garrison Relay disabled 6008 | -8/Garrison | Entered Factory 6008 | -7/Factory | Accompanied by 1 ally 6008 | -7/Factory | Evolved 2 slots: Propulsion x1, Utility x1 6808 | -7/Factory | First assault squad dispatched 7012 | -7/Factory | Identified exit to Garrison 7012 | -7/Factory | Entered Garrison 7016 | -7/Garrison | Triggered checkpoint 7032 | -7/Garrison | Learned Factory security intel 7038 | -7/Garrison | Triggered checkpoint 7056 | -7/Garrison | Garrison Relay disabled 7136 | -7/Garrison | Discovered new exit (range 5) 7184 | -7/Garrison | Spotted B-75 Beast 7209 | -7/Garrison | Destroyed B-75 Beast 7374 | -7/Garrison | Triggered checkpoint 7457 | -7/Garrison | Discovered new exit (range 13) 7518 | -7/Garrison | Triggered checkpoint 7591 | -7/Garrison | Garrison Relay disabled 7692 | -7/Garrison | Triggered checkpoint 7742 | -7/Garrison | Discovered new exit (range 8) 7784 | -7/Garrison | Triggered checkpoint 7805 | -7/Garrison | Found embedded Infiltrators 7867 | -7/Garrison | Garrison Relay disabled 7935 | -7/Garrison | Triggered checkpoint 7980 | -7/Garrison | Triggered checkpoint 8038 | -7/Garrison | Discovered new exit (range 10) 8079 | -7/Garrison | Expanded RIF knowledge: Zone Cloak 8100 | -7/Garrison | Triggered checkpoint 8114 | -7/Garrison | Garrison Relay disabled 8170 | -7/Garrison | Rescued a captive Derelict 8171 | -7/Garrison | Rescued a captive Derelict 8664 | -7/Garrison | Entered Factory 8664 | -6/Factory | Accompanied by 5 allies 8664 | -6/Factory | Evolved 2 slots: Utility x2 8772 | -6/Factory | Garrison activated, responded to threat 9183 | -6/Factory | Discovered new exit (range 12) 9234 | -6/Factory | Garrison activated, responded to threat 9259 | -6/Factory | Identified exit to Garrison 9259 | -6/Factory | Entered Garrison 9259 | -6/Garrison | Accompanied by 1 ally 9380 | -6/Garrison | Triggered checkpoint 9385 | -6/Garrison | Expanded RIF knowledge: Structural Interface 9437 | -6/Garrison | Garrison Relay disabled 9488 | -6/Garrison | Triggered checkpoint 9499 | -6/Garrison | Triggered checkpoint 9501 | -6/Garrison | Triggered checkpoint 9542 | -6/Garrison | Destroyed 14 combat bots 9645 | -6/Garrison | Spotted Executioner 9647 | -6/Garrison | Spotted Striker 9694 | -6/Garrison | Destroyed Striker 9701 | -6/Garrison | Destroyed Executioner 9744 | -6/Garrison | Rewired Executioner 9758 | -6/Garrison | Rewired Executioner 9774 | -6/Garrison | Found Exp. Core Analyzer 9788 | -6/Garrison | Discovered new exit (range 4) 9824 | -6/Garrison | Triggered checkpoint 9897 | -6/Garrison | Garrison Relay disabled 9955 | -6/Garrison | Destroyed 11 combat bots 10030 | -6/Garrison | Build established: Botlord-Mutant 10186 | -6/Garrison | Triggered checkpoint 10269 | -6/Garrison | Garrison Relay disabled 10315 | -6/Garrison | Discovered new exit (range 12) 10410 | -6/Garrison | Build established: Bothacker-Mutant 10439 | -6/Garrison | Garrison Relay disabled 10451 | -6/Garrison | Triggered checkpoint 10529 | -6/Garrison | Expanded RIF knowledge: Autoassimilate 10553 | -6/Garrison | Discovered new exit (range 3) 10770 | -6/Garrison | Build established: Mutant 10772 | -6/Garrison | Entered Factory 10772 | -5/Factory | Accompanied by 2 allies 10772 | -5/Factory | Evolved 2 slots: Utility x2 11023 | -5/Factory | Repaired Hvy. Mass Driver 11072 | -5/Factory | First assault squad dispatched 11241 | -5/Factory | Lost 8 parts (1p2n3u2w) 11247 | -5/Factory | Destroyed 12 combat bots 11310 | -5/Factory | Spotted B-75 Beast 11466 | -5/Factory | Released all parts (10) 11470 | -5/Factory | Core integrity fell below 50% 11487 | -5/Factory | Core integrity fell below 20% 11500 | -5/Factory | Lost 6 parts (2n2u2w) 11555 | -5/Factory | Sucked down chute 11555 | -5/Factory | Entered Waste 11568 | -5/Waste | Spotted C-40 Crusher 11578 | -5/Waste | Spotted C-40 Crusher 11608 | -5/Waste | Spotted C-40 Crusher 11613 | -5/Waste | Spotted C-40 Crusher 11621 | -5/Waste | Spotted C-40 Crusher 11638 | -5/Waste | Discovered new exit (range 16) 11638 | -5/Waste | Spotted C-40 Crusher 11681 | -5/Waste | Crushed by Compactor (1 part destroyed) 11686 | -5/Waste | Found Prototype Launcher 11686 | -5/Waste | Identified Tactical Quantum Warhead 11690 | -5/Waste | Entered Factory 11738 | -5/Factory | Discovered new exit (range 13) 11782 | -5/Factory | Entered Upper Caves 11858 | -5/Upper Caves | Encountered a Warlord checkpoint 11906 | -5/Upper Caves | Learned 8 Factory zone layouts 11933 | -5/Upper Caves | Learned location of Warlord (-5) 11934 | -5/Upper Caves | Discovered new exit (range 5) 11938 | -5/Upper Caves | Entered another Upper Caves area 11944 | -5/Upper Caves | Encountered a Warlord checkpoint 11952 | -5/Upper Caves | Learned 4 Factory zone layouts 11968 | -5/Upper Caves | Discovered new exit (range 9) 11995 | -5/Upper Caves | Learned 4 Factory zone layouts 12009 | -5/Upper Caves | Attracted the attention of an 0b10 checkpoint 12011 | -5/Upper Caves | Destroyed by Y-64 Sentinel with KE Penetrator Last Messages --------------- 11974_ IWCLLP0VLISP03G=>X:>9GXPTI0J0=Y# 11982_ Searching scrap... 11982_ Found Imp. Particle Charger. 11982_ Found Mak. Armor Plating. 11982_ Found 23 Matter. 11983_ Searching scrap... 11983_ Found Battle Cannon. 11983_ Found Gauss Rifle. 11983_ Found Reaction Control System. 11983_ Found Particle Charger. 11983_ Found 29 Matter. 11984_ Acquired 29 matter. 11990_ Acquired Imp. Light Armor Plating. 11994_ System corrupted: Matter fused (-10). 11995_ Acquired derelict log, extracted data. Data stored: Factory zone layouts (x4). 12006_ Relay Coupler [Heavy] destroyed. 12008_ Penetrated by Slug. 12008_ Imp. Light Armor Plating destroyed. 12009_ Y-64 Sentinel: "INTERCEPTING UNREGISTERED DERELICT." Map ----- +----------------------------------------------------+ | ?????????????????????????????????????????????????? | | ?????????????????????????????????????????????????? | | ?????????????????????????????????????????????????? | | ?????????????????????????????????????????????????? | | ?????????????????????????????????????????????????? | | ?????????????????????????????????????????????????? | | ?????????????????????????????????????????????????? | | ?????????????????????????????????????????????????? | | ?????????????????????????????????????????????????? | | ?????????????????????????????????????????????????? | | ?????????????????????????????????????????????????? | | ???????????????????????????# ????????????????????? | | ?????????????????????????## ????????????????????? | | ????????????????????????? ????????????????????? | | ????????????????????????? ????????????????????? | | ????????????????????????? #????????????????????? | | ?????????????????????????# #???????#????????????? | | ?????????????????????????# #?????? #????????????? | | ????????????????????????## #####? ###??????????? | | ????????????????????????# ## #??????????? | | ????????????????????????# s #??????????? | | ????????????????????????# ##?????????? | | ?????????????????????#### Y ????????? | | ????????????????###### ????????? | | ????????????????# g #?????????? | | ????????????????# @ #?????????? | | ????????????????# ######## ## #???????????????? | | ?????????????????????????# #???????????????????? | | ?????????????????????????## #???????????????????? | | ??????????????????????????# #???????????????????? | | ??????????????????????????# #???????????????????? | | ??????????????????????????# #???????????????????? | | ????????????????????????### ##??????????????????? | | ?????????????????????#### #??????????????????? | | ???????????????????### ##?????????????????? | | ??????????????????## #?????????????????? | | ?????????????????## ######????????????? | | ?????????????????# %! ??????????? | | ?????????????????# ### #########????????????? | | ????????????????# ##?## ##??????#####???????## | | ???????????????# ????## ######## ######### | | ??????????????# ?????# ## !] | | ??????????????## ?????# ## ! ![ ! | | ???????????????### ?????## ## ###+ ####### | | ?????????????????##????## ## ""T "" ""# | | ???????????????????????# #"" ## | | ??????????????????????## #" ## | | ??????????????????????# # ## ## | | ??????????????????????# ### #" [ # | | ??????????????????????###??## #" + | +----------------------------------------------------+ Best States ------------- Heat Dissipation 67 Energy Generation 29 Energy Capacity 350 Matter Stores 300 Matter Capacity 300 Sight Range 16 Robot Scan Range 16 Terrain Scan Density 10 Armor Coverage 750 Resistance: EM 25 Phase Shifting 15 Evasion (%) 55 Targeting Accuracy 8 Target Analysis 8 Core Analysis 8 Recoil Reduction 4 Relay Coupler Types 3 Relay Coupler Value 67 Item Schematics ----------------- None Robot Schematics ------------------ None Fabricated ------------ Nothing Alien Tech Used ----------------- None Achievements -------------- None Challenges ------------ None Game ------ Seed PointyCorruptionTrap Manual? 0 Play Time 01:31:12 Cumulative 251.1 hours Start 2022.07.05 @ 16:41:28 End 2022.07.05 @ 20:46:56 Sessions 3 Manual Loads 0 Difficulty Rogue Special Mode None Game No. 349 Rogue 262 Adventurer 87 Explorer 0 Win Type - Total 6 Types 3/0/2/1/0/0/0/0/0 Lore% 70 Gallery% 78 Achievement% 67 Wizard Run 0 Options --------- ASCII 0 Keyboard 1 Movement Numpad Keybinds 0 Fullscreen 1 Font 18/Smallcaps Map View 76x50 Tactical HUD 1 Map Filters NONE Filters NONE Steam 1 RUN: bb7cd269-aede-4bbb-8282-1d2f1d177149